fUST/lending_fUST_20250731
["ID","MTS","AMOUNT","RATE_DAILY","PERIOD"]
[376210620,1753894249860,-189.903044,0.0002141,2]
[376210622,1753894249869,-460.0,0.0002141,2]
[376210624,1753894249879,-63.42178215,0.00021411,2]
[376210626,1753894249890,-87.57821785,0.00021411,2]
[376210628,1753894249899,-287.979816,0.00021411,2]
[376210630,1753894249908,-287.979816,0.00021411,2]
[376210632,1753894249917,-2830.78,0.00021411,2]
[376210634,1753894249926,-722.62,0.00021411,2]
[376210636,1753894249935,-151.0,0.00021412,2]
[376210638,1753894249945,-151.0,0.00021412,2]
[376210640,1753894249954,-198.0,0.00021412,2]
[376210642,1753894249963,-502.0,0.00021412,2]
[376210644,1753894249973,-161.552635,0.00021412,2]
[376210646,1753894249983,-161.552635,0.00021412,2]
[376210648,1753894249993,-910.85,0.00021412,2]
[376210650,1753894250003,-460.0,0.00021412,2]
[376210652,1753894250012,-757.04,0.00021412,2]
[376210654,1753894250023,-677.69,0.00021412,2]
[376210656,1753894250032,-506.74926842,0.00021463,2]
[376210658,1753894250042,-500.0,0.00021471,2]
[376210660,1753894250055,-500.0,0.00021471,2]
[376210662,1753894250065,-500.0,0.00021471,2]
[376210664,1753894250074,-500.0,0.00021471,2]
[376210666,1753894250084,-220.5,0.00021494,2]
[376210668,1753894250096,-4201.95177755,0.000215,2]
[376210671,1753894250112,-7349.75294796,0.000215,2]
[376210673,1753894250125,-287.979816,0.000215,2]
[376210675,1753894250134,-287.979816,0.000215,2]
[376210677,1753894250143,-257.77638217,0.00021521,5]
[376210678,1753894250152,-164.339254,0.00021555,2]
[376210680,1753894250161,-164.339254,0.00021555,2]
[376210682,1753894250170,-260.0,0.00021559,2]
[376210684,1753894250179,-1245.38900196,0.00021616,2]
[376210686,1753894250190,-254.61099804,0.00021616,2]
[376210688,1753894250199,-430.201865,0.0002163,2]
[376210690,1753894250209,-546.38980805,0.0002164,2]
[376211774,1753894261204,170.179228,0.00013699,2]
[376212846,1753894998741,820.0,0.00025999,120]
[376213061,1753895327635,170.179228,0.00013699,2]
[376213487,1753895432790,-199.8323709,0.00018971,2]
[376213489,1753895432801,-181.539139,0.00019178,2]
[376213491,1753895432811,-265.37522495,0.00019894,2]
[376213493,1753895432821,-300.0,0.00019895,2]
[376213495,1753895432831,-300.0,0.00019895,2]
[376213497,1753895432841,-340.44842469,0.00019896,2]
[376213499,1753895432850,-460.0,0.00019896,2]
[376213501,1753895432860,-460.0,0.00019896,2]
[376213503,1753895432870,-460.0,0.00019896,2]
[376213505,1753895432879,-460.0,0.00019896,2]
[376213507,1753895432888,-460.0,0.00019896,2]
[376213509,1753895432897,-460.0,0.00019896,2]
[376213512,1753895432907,-1861.91,0.00019896,2]
[376213514,1753895432916,-460.0,0.00019896,2]
[376213516,1753895432926,-460.0,0.00019896,2]
[376213518,1753895432936,-460.0,0.00019896,2]
[376213520,1753895432945,-460.0,0.00019896,2]
[376213522,1753895432955,-460.0,0.00019896,2]
[376213524,1753895432964,-460.0,0.00019896,2]
[376213525,1753895432973,-1046.71,0.00019896,2]
[376213526,1753895432983,-460.0,0.00019896,2]
[376213528,1753895432992,-460.0,0.00019896,2]
[376213529,1753895433002,-460.0,0.00019896,2]
[376213530,1753895433011,-460.0,0.00019896,2]
[376213531,1753895433020,-460.0,0.00019896,2]
[376213532,1753895433029,-869.11,0.00019896,2]
[376213533,1753895433038,-460.0,0.00019896,2]
[376213534,1753895433048,-460.0,0.00019896,2]
[376213535,1753895433057,-174.69611066,0.00019896,2]
[376213536,1753895433067,-460.0,0.00019896,2]
[376213537,1753895433076,-531.28,0.00019896,2]
[376213538,1753895433086,-484.56,0.00019896,2]
[376213539,1753895433095,-866.52,0.00019896,2]
[376213540,1753895433105,-460.0,0.00019896,2]
[376213541,1753895433115,-460.0,0.00019896,2]
[376213542,1753895433124,-460.0,0.00019896,2]
[376213543,1753895433134,-460.0,0.00019896,2]
[376213544,1753895433143,-460.0,0.00019896,2]
[376213545,1753895433153,-460.0,0.00019896,2]
[376213546,1753895433162,-460.0,0.00019896,2]
[376213547,1753895433172,-460.0,0.00019896,2]
[376213548,1753895433182,-460.0,0.00019896,2]
[376213549,1753895433192,-460.0,0.00019896,2]
[376213550,1753895433201,-523.91,0.00019896,2]
[376213551,1753895433211,-460.0,0.00019896,2]
[376213552,1753895433220,-460.0,0.00019896,2]
[376213553,1753895433230,-5708.71660862,0.00019897,2]
[376213554,1753895433242,-3892.08945947,0.00019897,2]
[376213555,1753895433254,-467.09929999,0.00019897,2]
[376213606,1753895439171,-452.36,0.00019896,2]
[376213607,1753895439182,-328.28,0.00019896,2]
[376213608,1753895439191,-554.87470334,0.00019897,2]
[376213609,1753895439223,-23037.4974802,0.00019897,2]
[376213610,1753895439233,-460.0,0.00019994,2]
[376213611,1753895439242,-460.0,0.00019994,2]
[376213612,1753895439251,-579.87990335,0.00019994,2]
[376213613,1753895439261,-460.0,0.00019994,2]
[376213614,1753895439270,-460.0,0.00019994,2]
[376213615,1753895439280,-460.0,0.00019994,2]
[376213616,1753895439289,-460.0,0.00019994,2]
[376213617,1753895439299,-460.0,0.00019994,2]
[376213618,1753895439308,-460.0,0.00019994,2]
[376213619,1753895439318,-460.0,0.00019994,2]
[376213620,1753895439327,-460.0,0.00019994,2]
[376213621,1753895439337,-460.0,0.00019994,2]
[376213622,1753895439347,-460.0,0.00019996,2]
[376213623,1753895439358,-460.0,0.00019997,2]
[376213624,1753895439366,-471.77698235,0.00019997,2]
[376213625,1753895439376,-294.3927412,0.00019997,2]
[376213626,1753895439385,-986.4530929,0.00019998,2]
[376213628,1753895440822,-1254.5869071,0.00019998,2]
[376213629,1753895440831,-460.0,0.00019998,2]
[376213630,1753895440841,-572.07,0.00019998,2]
[376213631,1753895440851,-460.0,0.0002017,2]
[376213632,1753895440861,-460.0,0.0002017,2]
[376213633,1753895440871,-460.0,0.0002017,2]
[376213634,1753895440880,-460.0,0.0002017,2]
[376213635,1753895440889,-460.0,0.0002017,2]
[376213636,1753895440899,-1861.91,0.0002017,2]
[376213637,1753895440908,-460.0,0.0002017,2]
[376213638,1753895440918,-472.17624758,0.0002017,2]
[376213639,1753895440927,-177.1,0.0002017,2]
[376213640,1753895440937,-460.0,0.0002017,2]
[376213641,1753895440946,-1046.71,0.0002017,2]
[376213642,1753895440956,-460.0,0.0002017,2]
[376213643,1753895440966,-460.0,0.0002017,2]
[376213644,1753895440975,-460.0,0.0002017,2]
[376213645,1753895440985,-460.0,0.0002017,2]
[376213646,1753895440995,-869.11,0.0002017,2]
[376213647,1753895441005,-515.8,0.0002017,2]
[376213648,1753895441015,-531.28,0.0002017,2]
[376213649,1753895441024,-866.52,0.0002017,2]
[376213650,1753895441034,-460.0,0.0002017,2]
[376213651,1753895441044,-460.0,0.0002017,2]
[376213652,1753895441055,-460.0,0.0002017,2]
[376213653,1753895441064,-460.0,0.0002017,2]
[376213654,1753895441074,-460.0,0.0002017,2]
[376213655,1753895441084,-460.0,0.0002017,2]
[376213656,1753895441093,-460.0,0.0002017,2]
[376213657,1753895441102,-460.0,0.0002017,2]
[376213658,1753895441113,-523.91,0.0002017,2]
[376213659,1753895441123,-460.0,0.0002017,2]
[376213660,1753895441132,-226.20088087,0.0002017,2]
[376213937,1753895443733,-233.79911913,0.0002017,2]
[376213939,1753895443743,-460.0,0.00020268,2]
[376213941,1753895443752,-18.59599461,0.00020268,2]
[376213943,1753895443764,-441.40400539,0.00020268,2]
[376213945,1753895443773,-358.59599461,0.00020268,2]
[376213948,1753895443785,-101.40400539,0.00020268,2]
[376213951,1753895443805,-460.0,0.00020268,2]
[376213953,1753895443816,-460.0,0.00020268,2]
[376213955,1753895443825,-460.0,0.00020268,2]
[376213957,1753895443835,-155.46323122,0.00020268,2]
[376213959,1753895443845,-460.0,0.00020268,2]
[376213961,1753895443855,-461.52954051,0.00020269,2]
[376213963,1753895443866,-460.0,0.00020269,2]
[376213966,1753895443877,-460.88251901,0.00020269,2]
[376213968,1753895443887,-460.0,0.00020269,2]
[376213970,1753895443897,-460.0,0.00020269,2]
[376213972,1753895443906,-460.0,0.00020269,2]
[376213974,1753895443916,-460.0,0.00020269,2]
[376213976,1753895443925,-460.0,0.00020269,2]
[376213978,1753895443936,-384.83249939,0.00020269,2]
[376213980,1753895443946,-460.0,0.00020269,2]
[376213982,1753895443955,-460.0,0.00020269,2]
[376213984,1753895443965,-802.96,0.00020269,2]
[376213986,1753895443975,-460.0,0.00020269,2]
[376213988,1753895443984,-460.0,0.00020269,2]
[376213990,1753895443994,-460.0,0.00020269,2]
[376213992,1753895444004,-460.0,0.0002027,2]
[376213994,1753895444014,-2241.04,0.00020272,2]
[376213996,1753895444023,-460.0,0.00020272,2]
[376213998,1753895444033,-572.07,0.00020272,2]
[376214000,1753895444042,-200.0,0.00020293,15]
[376214002,1753895444053,-200.0,0.00020293,15]
[376214004,1753895444062,-200.0,0.00020293,15]
[376214006,1753895444073,-200.0,0.00020293,15]
[376214008,1753895444083,-200.0,0.00020293,15]
[376214010,1753895444093,-200.0,0.00020293,15]
[376214012,1753895444103,-200.0,0.00020293,15]
[376214015,1753895444114,-200.0,0.00020293,15]
[376214017,1753895444124,-200.0,0.00020293,15]
[376214019,1753895444134,-200.0,0.00020293,15]
[376214021,1753895444143,-721.09,0.00020314,2]
[376214023,1753895444152,-460.0,0.00020314,2]
[376214025,1753895444163,-599.33,0.00020314,2]
[376214027,1753895444172,-536.5,0.00020314,2]
[376214029,1753895444181,-151.0,0.00020395,2]
[376214031,1753895444191,-279.959265,0.00020395,2]
[376214033,1753895444201,-339.80671718,0.00020442,2]
[376214035,1753895444211,-460.0,0.00020444,2]
[376214037,1753895444220,-460.0,0.00020444,2]
[376214039,1753895444231,-249.20016872,0.00020444,2]
[376214041,1753895444241,-460.0,0.00020444,2]
[376214043,1753895444250,-1861.91,0.00020444,2]
[376214045,1753895444260,-542.84423276,0.00020444,2]
[376214047,1753895444270,-460.0,0.00020444,2]
[376214049,1753895444280,-1046.71,0.00020444,2]
[376214051,1753895444290,-460.0,0.00020444,2]
[376214053,1753895444299,-225.05397803,0.00020444,2]
[376214055,1753895444309,-460.0,0.00020444,2]
[376214058,1753895444318,-869.11,0.00020444,2]
[376214060,1753895444328,-531.28,0.00020444,2]
[376214062,1753895444337,-866.52,0.00020444,2]
[376214065,1753895444347,-460.0,0.00020444,2]
[376214068,1753895444356,-460.0,0.00020444,2]
[376214071,1753895444367,-460.0,0.00020444,2]
[376214074,1753895444378,-460.0,0.00020444,2]
[376214077,1753895444387,-460.0,0.00020444,2]
[376214079,1753895444397,-532.01,0.00020444,2]
[376214081,1753895444407,-586.83,0.00020444,2]
[376214083,1753895444420,-460.0,0.00020444,2]
[376214085,1753895444429,-523.91,0.00020444,2]
[376214087,1753895444439,-460.0,0.00020444,2]
[376214089,1753895444448,-510.82,0.00020444,2]
[376214091,1753895444459,-151.0,0.0002054,2]
[376214093,1753895444469,-25000.0,0.0002054,2]
[376214095,1753895444479,-151.0,0.0002054,2]
[376214097,1753895444490,-151.0,0.0002054,2]
[376214099,1753895444499,-14648.23170311,0.0002054,2]
[376214101,1753895444509,-151.0,0.0002054,2]
[376214103,1753895444518,-151.0,0.0002054,2]
[376214105,1753895444528,-151.0,0.0002054,2]
[376214107,1753895444537,-151.0,0.0002054,2]
[376214109,1753895444547,-151.0,0.0002054,2]
[376214112,1753895444556,-2030.296672,0.0002054,2]
[376214114,1753895444566,-151.0,0.0002054,2]
[376214116,1753895444575,-151.0,0.0002054,2]
[376214117,1753895444585,-151.0,0.0002054,2]
[376214120,1753895444595,-151.0,0.0002054,2]
[376214122,1753895444605,-151.0,0.0002054,2]
[376214124,1753895444617,-151.0,0.0002054,2]
[376214126,1753895444627,-151.0,0.0002054,2]
[376214127,1753895444636,-151.0,0.0002054,2]
[376214128,1753895444646,-151.0,0.0002054,2]
[376214129,1753895444656,-151.0,0.0002054,2]
[376214130,1753895444665,-151.0,0.0002054,2]
[376214131,1753895444674,-151.0,0.0002054,2]
[376214132,1753895444683,-300.0,0.0002054,2]
[376214133,1753895444693,-300.0,0.0002054,2]
[376214134,1753895444703,-300.0,0.0002054,2]
[376214135,1753895444712,-300.0,0.0002054,2]
[376214136,1753895444721,-300.0,0.0002054,2]
[376214137,1753895444731,-300.0,0.0002054,2]
[376214138,1753895444740,-300.0,0.0002054,2]
[376214139,1753895444750,-300.0,0.0002054,2]
[376214140,1753895444759,-300.0,0.0002054,2]
[376214141,1753895444768,-300.0,0.0002054,2]
[376214142,1753895444777,-300.0,0.0002054,2]
[376214143,1753895444787,-300.0,0.0002054,2]
[376214144,1753895444796,-300.0,0.0002054,2]
[376214145,1753895444805,-300.0,0.0002054,2]
[376214146,1753895444814,-300.0,0.0002054,2]
[376214147,1753895444824,-300.0,0.0002054,2]
[376214148,1753895444834,-300.0,0.0002054,2]
[376214150,1753895444844,-300.0,0.0002054,2]
[376214151,1753895444853,-300.0,0.0002054,2]
[376214154,1753895444866,-300.0,0.0002054,2]
[376214156,1753895444876,-460.0,0.00020542,2]
[376214158,1753895444886,-460.0,0.00020542,2]
[376214160,1753895444896,-579.13902897,0.00020542,2]
[376214162,1753895444905,-460.0,0.00020542,2]
[376214164,1753895444915,-460.0,0.00020542,2]
[376214166,1753895444925,-460.0,0.00020543,2]
[376214168,1753895444934,-802.96,0.00020543,2]
[376214170,1753895444943,-460.0,0.00020543,2]
[376214172,1753895444953,-460.0,0.00020543,2]
[376214174,1753895444963,-460.0,0.00020543,2]
[376214176,1753895444973,-460.0,0.00020544,2]
[376214178,1753895444983,-2241.04,0.00020546,2]
[376214180,1753895444993,-460.0,0.00020546,2]
[376214182,1753895445003,-572.07,0.00020546,2]
[376214184,1753895445012,-151.0,0.00020547,2]
[376214186,1753895445023,-721.09,0.00020588,2]
[376214188,1753895445032,-460.0,0.00020588,2]
[376214190,1753895445042,-599.33,0.00020588,2]
[376214192,1753895445052,-536.5,0.00020588,2]
[376214194,1753895445062,-1206.03866463,0.00020595,2]
[376214196,1753895445071,-214.95885286,0.00020677,2]
[376214198,1753895445081,-526.76118213,0.00020678,2]
[376214200,1753895445090,-841.2246943,0.00020678,2]
[376214202,1753895445100,-160.0,0.00020678,2]
[376214204,1753895445110,-460.0,0.00020718,2]
[376214207,1753895445120,-460.0,0.00020718,2]
[376214208,1753895445130,-460.0,0.00020718,2]
[376214211,1753895445140,-1861.91,0.00020718,2]
[376214212,1753895445150,-460.0,0.00020718,2]
[376214215,1753895445160,-1046.71,0.00020718,2]
[376214217,1753895445170,-460.0,0.00020718,2]
[376214219,1753895445179,-460.0,0.00020718,2]
[376214221,1753895445188,-869.11,0.00020718,2]
[376214223,1753895445197,-531.28,0.00020718,2]
[376214224,1753895445206,-866.52,0.00020718,2]
[376214227,1753895445216,-460.0,0.00020718,2]
[376214229,1753895445226,-460.0,0.00020718,2]
[376214231,1753895445235,-582.38,0.00020718,2]
[376214233,1753895445244,-460.0,0.00020718,2]
[376214234,1753895445253,-460.0,0.00020718,2]
[376214237,1753895445263,-460.0,0.00020718,2]
[376214239,1753895445272,-523.91,0.00020718,2]
[376214241,1753895445281,-460.0,0.00020718,2]
[376214243,1753895445290,-460.0,0.00020816,2]
[376214245,1753895445299,-460.0,0.00020816,2]
[376214262,1753895445459,-460.0,0.00020816,2]
[376214264,1753895445469,-460.0,0.00020817,2]
[376214266,1753895445479,-802.96,0.00020817,2]
[376214269,1753895445489,-460.0,0.00020817,2]
[376214271,1753895445499,-460.0,0.00020817,2]
[376214272,1753895445508,-460.0,0.00020817,2]
[376214275,1753895445517,-460.0,0.00020818,2]
[376214276,1753895445526,-2241.04,0.0002082,2]
[376214278,1753895445535,-460.0,0.0002082,2]
[376214280,1753895445545,-572.07,0.0002082,2]
[376214282,1753895445553,-265.37522491,0.0002083,2]
[376214284,1753895445563,-721.09,0.00020862,2]
[376214286,1753895445572,-460.0,0.00020862,2]
[376214288,1753895445582,-599.33,0.00020862,2]
[376214290,1753895445592,-536.5,0.00020862,2]
[376214292,1753895445601,-347.15090003,0.000209,4]
[376214294,1753895445611,-339.80671718,0.00020929,2]
[376214297,1753895445621,-510.96,0.00020992,2]
[376214299,1753895445630,-227.01811604,0.00020992,2]
[376214301,1753895445639,-1861.91,0.00020992,2]
[376214303,1753895445648,-460.0,0.00020992,2]
[376214305,1753895445658,-1046.71,0.00020992,2]
[376214307,1753895445667,-460.0,0.00020992,2]
[376214308,1753895445677,-869.11,0.00020992,2]
[376214310,1753895445686,-531.28,0.00020992,2]
[376214312,1753895445695,-866.52,0.00020992,2]
[376214314,1753895445705,-460.0,0.00020992,2]
[376214316,1753895445714,-460.0,0.00020992,2]
[376214318,1753895445723,-463.14,0.00020992,2]
[376214320,1753895445732,-460.0,0.00020992,2]
[376214322,1753895445742,-460.0,0.00020992,2]
[376214324,1753895445750,-523.91,0.00020992,2]
[376214326,1753895445759,-460.0,0.00020992,2]
[376214328,1753895445768,-2969.72497585,0.00021,2]
[376214330,1753895445777,-25000.0,0.00021088,2]
[376214332,1753895445786,-460.0,0.0002109,2]
[376214334,1753895445795,-500.09,0.0002109,2]
[376214336,1753895445804,-460.0,0.0002109,2]
[376214338,1753895445813,-460.0,0.00021091,2]
[376214340,1753895445822,-802.96,0.00021091,2]
[376214342,1753895445831,-460.0,0.00021091,2]
[376214344,1753895445840,-460.0,0.00021091,2]
[376214346,1753895445849,-320.16044497,0.00021092,2]
[376214348,1753895445858,-2241.04,0.00021094,2]
[376214350,1753895445868,-460.0,0.00021094,2]
[376214352,1753895445877,-572.07,0.00021094,2]
[376214354,1753895445886,-347.15089986,0.00021107,4]
[376214356,1753895445895,-721.09,0.00021136,2]
[376214358,1753895445904,-460.0,0.00021136,2]
[376214360,1753895445914,-599.33,0.00021136,2]
[376214362,1753895445923,-536.5,0.00021136,2]
[376214364,1753895445932,-453.67926843,0.00021184,2]
[376214365,1753895445943,-1812.90235663,0.00021184,2]
[376214368,1753895445954,-153.3681744,0.0002126,2]
[376214369,1753895445963,-153.0,0.0002126,2]
[376214371,1753895445973,-1861.91,0.00021266,2]
[376214374,1753895445983,-460.0,0.00021266,2]
[376214375,1753895445991,-1046.71,0.00021266,2]
[376214377,1753895446001,-197.1043471,0.00021266,2]
[376214379,1753895446010,-869.11,0.00021266,2]
[376214381,1753895446020,-531.28,0.00021266,2]
[376214384,1753895446030,-866.52,0.00021266,2]
[376214386,1753895446040,-460.0,0.00021266,2]
[376214388,1753895446050,-274.96,0.00021266,2]
[376214390,1753895446059,-460.0,0.00021266,2]
[376214392,1753895446068,-460.0,0.00021266,2]
[376214394,1753895446078,-523.91,0.00021266,2]
[376214395,1753895446088,-460.0,0.00021266,2]
[376214398,1753895446097,-347.15089986,0.00021314,5]
[376214399,1753895446107,-460.0,0.00021364,2]
[376214402,1753895446118,-460.0,0.00021364,2]
[376214404,1753895446127,-460.0,0.00021365,2]
[376214405,1753895446137,-802.96,0.00021365,2]
[376214408,1753895446147,-460.0,0.00021365,2]
[376214409,1753895446156,-460.0,0.00021365,2]
[376214412,1753895446165,-2241.04,0.00021368,2]
[376214414,1753895446180,-460.0,0.00021368,2]
[376214417,1753895446194,-572.07,0.00021368,2]
[376214419,1753895446204,-721.09,0.0002141,2]
[376214421,1753895446215,-460.0,0.0002141,2]
[376214423,1753895446225,-599.33,0.0002141,2]
[376214425,1753895446235,-536.5,0.0002141,2]
[376214427,1753895446245,-295.17728868,0.00021412,2]
[376214429,1753895446256,-151.0,0.00021412,2]
[376214431,1753895446266,-152.98419651,0.00021412,2]
[376214433,1753895446275,-151.0,0.00021412,2]
[376214435,1753895446285,-151.28167398,0.00021412,2]
[376214437,1753895446295,-459.0,0.00021412,2]
[376214439,1753895446305,-339.80671718,0.00021416,2]
[376214441,1753895446315,-347.15089986,0.00021521,5]
[376214444,1753895446325,-1861.91,0.0002154,2]
[376214446,1753895446334,-460.0,0.0002154,2]
[376214448,1753895446344,-1046.71,0.0002154,2]
[376214450,1753895446354,-151.0,0.0002154,2]
[376214452,1753895446363,-869.11,0.0002154,2]
[376214454,1753895446372,-151.0,0.0002154,2]
[376214456,1753895446382,-531.28,0.0002154,2]
[376214458,1753895446391,-866.52,0.0002154,2]
[376214460,1753895446402,-460.0,0.0002154,2]
[376214462,1753895446414,-460.0,0.0002154,2]
[376214464,1753895446424,-523.91,0.0002154,2]
[376214466,1753895446433,-151.0,0.0002154,2]
[376214468,1753895446443,-460.0,0.0002154,2]
[376214470,1753895446452,-151.0,0.0002154,2]
[376214472,1753895446462,-286.801243,0.0002163,2]
[376214474,1753895446473,-188.86,0.00021638,2]
[376214476,1753895446483,-460.0,0.00021638,2]
[376214478,1753895446492,-460.0,0.00021639,2]
[376214480,1753895446502,-802.96,0.00021639,2]
[376214482,1753895446512,-460.0,0.00021639,2]
[376214484,1753895446522,-460.0,0.00021639,2]
[376214486,1753895446532,-294.37120102,0.0002164,2]
[376214488,1753895446541,-555.3621045,0.0002164,2]
[376214490,1753895446550,-388.75347315,0.0002164,2]
[376214492,1753895446559,-272.12743121,0.0002164,2]
[376214494,1753895446569,-190.48920184,0.0002164,2]
[376214496,1753895446580,-151.0,0.0002164,2]
[376214499,1753895446590,-293.4748043,0.0002164,2]
[376214501,1753895446599,-2241.04,0.00021642,2]
[376214503,1753895446609,-460.0,0.00021642,2]
[376214505,1753895446619,-572.07,0.00021642,2]
[376214507,1753895446629,-420.0,0.00021666,2]
[376214509,1753895446640,-155.0,0.00021666,2]
[376214511,1753895446649,-721.09,0.00021684,2]
[376214513,1753895446659,-460.0,0.00021684,2]
[376214515,1753895446668,-599.33,0.00021684,2]
[376214517,1753895446677,-536.5,0.00021684,2]
[376214519,1753895446687,-459.0,0.00021686,2]
[376214521,1753895446697,-347.15089986,0.00021728,5]
[376214523,1753895446706,-778.06578995,0.00021739,2]
[376214525,1753895446714,-408.0,0.00021753,2]
[376214527,1753895446723,-265.37522491,0.00021767,2]
[376214529,1753895446732,-160.0,0.00021794,2]
[376214531,1753895446742,-179.82017982,0.00021795,2]
[376214533,1753895446751,-1861.91,0.00021814,2]
[376214535,1753895446763,-460.0,0.00021814,2]
[376214537,1753895446772,-1046.71,0.00021814,2]
[376214539,1753895446781,-869.11,0.00021814,2]
[376214541,1753895446790,-531.28,0.00021814,2]
[376214543,1753895446800,-866.52,0.00021814,2]
[376214545,1753895446809,-150.49,0.00021814,2]
[376214547,1753895446818,-460.0,0.00021814,2]
[376214549,1753895446828,-523.91,0.00021814,2]
[376214551,1753895446838,-460.0,0.00021814,2]
[376214554,1753895446847,-339.80671718,0.00021903,2]
[376214556,1753895446858,-500.0,0.00021907,2]
[376214558,1753895446868,-460.0,0.00021912,2]
[376214560,1753895446876,-151.0,0.00021912,2]
[376214562,1753895446886,-460.0,0.00021913,2]
[376214564,1753895446895,-802.96,0.00021913,2]
[376214566,1753895446904,-460.0,0.00021913,2]
[376214568,1753895446913,-460.0,0.00021913,2]
[376214570,1753895446922,-151.0,0.00021914,2]
[376214572,1753895446931,-2241.04,0.00021916,2]
[376214574,1753895446940,-460.0,0.00021916,2]
[376214576,1753895446950,-572.07,0.00021916,2]
[376214578,1753895446959,-347.15089986,0.00021934,6]
[376214579,1753895446968,-721.09,0.00021958,2]
[376214582,1753895446978,-460.0,0.00021958,2]
[376214584,1753895446988,-599.33,0.00021958,2]
[376214586,1753895446998,-536.5,0.00021958,2]
[376214588,1753895447007,-459.0,0.0002196,2]
[376214590,1753895447018,-330.65,0.00022,2]
[376214592,1753895447027,-576.0134338,0.00022082,2]
[376214594,1753895447036,-159.9009308,0.00022082,2]
[376214596,1753895447046,-1237.11111226,0.00022086,2]
[376214598,1753895447056,-1861.91,0.00022088,2]
[376214600,1753895447066,-406.71,0.00022088,2]
[376214602,1753895447076,-1046.71,0.00022088,2]
[376214604,1753895447085,-869.11,0.00022088,2]
[376214606,1753895447095,-531.28,0.00022088,2]
[376214608,1753895447105,-866.52,0.00022088,2]
[376214610,1753895447115,-460.0,0.00022088,2]
[376214612,1753895447124,-523.91,0.00022088,2]
[376214614,1753895447133,-460.0,0.00022088,2]
[376214616,1753895447142,-347.15089986,0.00022141,6]
[376214617,1753895447152,-4483.32685133,0.00022152,2]
[376217026,1753896125729,460.0,0.0001901,6]
[376217028,1753896244709,-267.99457812,0.00018956,2]
[376217032,1753896261198,-155.0,0.00018956,2]
[376217033,1753896264964,-460.0,0.00018956,2]
[376217034,1753896267600,-251.83473183,0.00018956,2]
[376217035,1753896269163,-160.0,0.00018956,2]
[376217036,1753896270683,-244.099502,0.00018956,2]
[376217037,1753896277778,-1523.33,0.00018956,2]
[376217038,1753896281175,-622.78,0.00018956,2]
[376217039,1753896285162,-382.36602582,0.00018956,2]
[376217040,1753896286756,-723.02208985,0.00018956,2]
[376217041,1753896290128,-945.52725839,0.00018956,2]
[376217042,1753896294042,-460.0,0.00018956,2]
[376217043,1753896297285,-300.0,0.00018956,2]
[376217045,1753896301339,-308.0,0.00018956,2]
[376217046,1753896303885,-300.0,0.00018955,2]
[376217047,1753896303909,-160.0,0.00018955,2]
[376217048,1753896311687,-11.0,0.00018955,2]
[376217049,1753896311710,-240.0,0.00018955,2]
[376217050,1753896311732,-209.0,0.00018956,2]
[376217051,1753896313803,-349.0,0.00018956,2]